bitfinex/quotes_SOLUSD_20241213
["timestamp","ask_amount","ask_price","bid_price","bid_amount"]
[1734111776771,11.2404,222.42,222.33,0.12549]
[1734111777264,20.0,222.39,222.33,0.12549]
[1734111778550,20.0,222.39,222.32,27.99707098]
[1734111779062,20.0,222.37,222.25,20.0]
[1734111779362,20.0,222.37,222.27,0.25098]
[1734111779669,20.0,222.35,222.26,30.0]
[1734111780746,20.0,222.35,222.24,0.25098]
[1734111780952,20.0,222.35,222.26,0.25098]
[1734111781361,11.2389,222.44,222.29,32.5715332]
[1734111781567,11.2389,222.44,222.32,0.12549]
[1734111781971,11.2389,222.44,222.33,0.92546359]
[1734111782170,11.2389,222.44,222.34,0.12549]
[1734111783446,11.2389,222.44,222.36,0.12549]
[1734111783661,11.2373,222.48,222.38,0.12549]
[1734111784260,11.2373,222.48,222.33,29.21798456]
[1734111784446,11.2373,222.48,222.34,8.5436692]
[1734111784649,11.2354,222.51,222.34,0.37647]
[1734111784953,11.2354,222.51,222.34,30.37647]
[1734111784954,20.0,222.47,222.34,30.37647]
[1734111785664,20.0,222.47,222.34,8.9201392]
[1734111786380,20.0,222.47,222.34,0.37647]
[1734111786668,11.2379,222.46,222.34,0.37647]
[1734111787960,11.2379,222.46,222.34,8.9201392]
[1734111788153,11.2379,222.46,222.36,0.25098]
[1734111788474,20.0,222.47,222.39,0.37647]
[1734111789061,11.2364,222.49,222.39,0.37647]
[1734111789266,11.2364,222.49,222.32,20.0]
[1734111789577,23.776884,222.48,222.34,0.25098]
[1734111789772,23.776884,222.48,222.35,0.12549]
[1734111790376,20.0,222.45,222.35,0.12549]
[1734111791071,20.0,222.45,222.36,0.25098]
[1734111791280,20.0,222.45,222.37,0.12549]
[1734111791967,31.2363,222.5,222.39,0.12549]
[1734111792477,31.2363,222.5,222.4,1.5581]
[1734111792672,31.2363,222.5,222.41,0.12549]
[1734111797660,31.2363,222.5,222.41,0.37647]
[1734111798879,31.2363,222.5,222.4,1.5581]
[1734111799261,31.2363,222.5,222.34,1.5758]
[1734111799457,23.776884,222.49,222.35,30.0]
[1734111799681,20.0,222.46,222.35,30.0]
[1734111799881,20.0,222.46,222.34,1.5758]
[1734111800065,20.0,222.46,222.35,0.25098]
[1734111800478,20.0,222.46,222.35,0.12549]
[1734111800678,20.0,222.47,222.35,0.25098]
[1734111800875,20.0,222.47,222.38,0.12549]
[1734111801076,11.2363,222.5,222.37,0.12549]
[1734111801384,11.2363,222.5,222.39,0.12549]
[1734111802183,11.2363,222.5,222.4,0.12549]
[1734111802372,20.0,222.47,222.4,0.25098]
[1734111808468,20.0,222.49,222.36,20.0]
[1734111808669,20.0,222.49,222.34,1.5758]
[1734111808883,20.0,222.49,222.36,0.25098]
[1734111809081,20.0,222.49,222.36,0.12549]
[1734111809478,20.0,222.49,222.36,0.25098]
[1734111809669,11.2369,222.48,222.37,0.25098]
[1734111810277,20.0,222.45,222.35,30.0]
[1734111810478,20.0,222.45,222.34,1.5758]
[1734111811596,11.2389,222.44,222.35,0.12549]
[1734111812095,11.2389,222.44,222.34,1.5758]
[1734111813288,11.2389,222.44,222.35,0.37647]
[1734111813492,20.0,222.45,222.35,8.9201392]
[1734111813693,33.7051,222.52,222.38,0.37647]
[1734111815091,20.0,222.49,222.38,8.9201392]
[1734111815275,20.0,222.49,222.4,0.37647]
[1734111816067,20.0,222.49,222.4,30.37647]
[1734111816270,11.2353,222.52,222.4,38.9201392]
[1734111816670,11.2353,222.52,222.4,8.9201392]
[1734111817474,11.2353,222.52,222.4,0.37647]
[1734111818190,11.2353,222.52,222.4,8.9201392]
[1734111818368,11.2353,222.52,222.4,0.37647]
[1734111820483,11.2353,222.52,222.42,0.37647]
[1734111825713,20.0,222.49,222.41,0.12549]
[1734111825909,20.0,222.49,222.4,30.0]
[1734111826202,0.5309375,222.53,222.34,1.5758]
[1734111826203,20.0,222.45,222.34,1.5758]
[1734111826497,20.0,222.45,222.35,30.0]
[1734111826875,20.0,222.45,222.34,1.5758]
[1734111828184,11.2389,222.44,222.34,1.5758]
[1734111829096,20.0,222.46,222.34,1.5758]
[1734111829304,20.0,222.44,222.34,1.5758]
[1734111830406,20.0,222.4,222.34,1.5758]
[1734111830792,20.0,222.4,222.29,1.5911]
[1734111831115,11.2379,222.47,222.38,8.5436692]
[1734111831409,11.2359,222.5,222.37,0.25098]
[1734111832100,11.2359,222.5,222.38,0.12549]
[1734111832300,11.2359,222.5,222.37,0.12549]
[1734111832687,20.0,222.47,222.37,0.37647]
[1734111833280,20.0,222.45,222.35,0.12549]
[1734111833499,20.0,222.45,222.35,30.12549]
[1734111833985,20.0,222.45,222.36,8.5436692]
[1734111834193,11.2374,222.48,222.37,0.37647]
[1734111834800,11.2374,222.48,222.37,30.37647]
[1734111835188,20.0,222.49,222.37,30.37647]
[1734111835387,20.0,222.49,222.37,38.9201392]
[1734111835587,20.0,222.49,222.39,0.12549]
[1734111836297,11.2349,222.52,222.43,0.12549]
[1734111841111,20.0,222.48,222.4,1.6205]
[1734111841304,20.0,222.48,222.41,30.0]
[1734111841509,20.0,222.48,222.4,1.6205]
[1734111842528,31.2374,222.48,222.4,1.6205]
[1734111849316,11.2354,222.52,222.41,8.9201392]
[1734111850928,11.2354,222.52,222.43,0.12549]
[1734111851229,0.5309375,222.53,222.46,0.12549]
[1734111851640,0.5309375,222.53,222.46,8.6691592]
[1734111851826,0.5309375,222.53,222.47,1.5294]
[1734111852300,20.5309375,222.53,222.47,1.5294]
[1734111854119,0.5309375,222.53,222.49,8.6691592]
[1734111854430,7.04708891,222.69,222.55,0.12549]
[1734111854608,11.2258,222.7,222.57,0.12549]
[1734111854916,11.2258,222.7,222.57,0.37647]
[1734111855121,11.2258,222.7,222.57,8.9201392]
[1734111855317,11.2258,222.7,222.58,13.31416178]
[1734111855819,20.0,222.67,222.58,13.31416178]
[1734111856038,20.0,222.67,222.57,13.69063178]
[1734111856225,11.2258,222.7,222.6,0.12549]
[1734111856622,10.7258,222.7,222.6,0.12549]
[1734111857233,10.7258,222.7,222.58,1.5219]
[1734111857735,10.7258,222.7,222.59,0.37647]
[1734111858727,20.0,222.67,222.59,0.37647]
[1734111859137,10.7258,222.7,222.59,0.37647]
[1734111859341,23.776884,222.73,222.59,13.69063178]
[1734111859664,11.2238,222.74,222.64,0.12549]
[1734111861114,20.0,222.71,222.64,0.12549]
[1734111861321,11.2238,222.74,222.6,6.3881]
[1734111861517,20.0,222.7,222.61,0.12549]
[1734111861826,20.0,222.7,222.62,30.0]
[1734111862149,20.0,222.62,222.58,1.5219]
[1734111862620,20.0,222.66,222.58,1.5219]
[1734111862943,20.0,222.62,222.58,1.5219]
[1734111863646,23.776884,222.64,222.55,6.0582]
[1734111863937,23.776884,222.64,222.52,1.5806]
[1734111863938,20.0,222.61,222.52,1.5806]
[1734111864357,11.2273,222.67,222.56,13.31416178]
[1734111864528,11.2273,222.67,222.57,13.31416178]
[1734111864940,11.2273,222.67,222.58,0.25098]
[1734111865324,23.776884,222.72,222.58,13.56514178]
[1734111865547,34.999684,222.76,222.59,0.12549]
[1734111865943,23.776884,222.74,222.59,0.12549]
[1734111866437,20.0,222.7,222.59,0.12549]
[1734111866949,20.0,222.7,222.61,1.6149]
[1734111867320,31.2259,222.7,222.62,0.12549]
[1734111869220,31.2259,222.7,222.61,1.6149]
[1734111869530,20.0,222.66,222.61,1.6149]
[1734111869735,20.0,222.66,222.56,1.6376]
[1734111870639,11.2283,222.65,222.56,1.6376]
[1734111871746,20.0,222.62,222.56,1.6376]
[1734111872761,20.0,222.65,222.56,1.6376]
[1734111872948,20.0,222.61,222.56,1.6376]
[1734111873946,11.2309,222.6,222.56,1.6376]
[1734111879659,20.0,222.65,222.56,1.6376]
[1734111879849,35.004184,222.67,222.56,1.6376]
[1734111880236,57.458884,222.67,222.56,1.6376]
[1734111880432,0.12549,222.64,222.5,1.5443]
[1734111880735,23.776884,222.63,222.5,1.5443]
[1734111880940,20.0,222.6,222.5,1.5443]
[1734111881158,20.0,222.56,222.5,1.5443]
[1734111881739,11.2334,222.55,222.5,1.5443]
[1734111882954,5.0,222.69,222.52,13.31416178]
[1734111883162,25.85739738,222.67,222.52,13.31416178]
[1734111883453,22.4547,222.67,222.54,13.31416178]
[1734111883755,11.2278,222.66,222.51,0.37647]
[1734111884054,11.2278,222.66,222.53,13.31416178]
[1734111884360,23.776884,222.65,222.52,13.31416178]
[1734111884570,11.2288,222.64,222.53,0.12549]
[1734111885052,20.0,222.61,222.53,0.12549]
[1734111885254,20.0,222.61,222.52,0.12549]
[1734111886048,20.0,222.62,222.51,13.31416178]
[1734111886244,20.0,222.61,222.51,13.31416178]
[1734111886442,20.0,222.61,222.52,13.43965178]
[1734111888448,20.0,222.61,222.54,0.12549]
[1734111888654,20.0,222.64,222.54,0.12549]
[1734111889231,22.4547,222.67,222.54,0.12549]
[1734111889685,23.776884,222.66,222.54,0.12549]
[1734111890149,11.2283,222.65,222.54,0.12549]
[1734111892662,20.0,222.63,222.54,0.12549]
[1734111893853,31.2296,222.63,222.53,0.12549]
[1734111894168,31.2296,222.63,222.52,30.0]
[1734111894672,23.776884,222.62,222.52,30.0]
[1734111895948,23.776884,222.62,222.5,1.5443]
[1734111896162,11.2304,222.61,222.51,30.0]
[1734111896544,11.2304,222.61,222.5,1.5443]
[1734111898073,31.2321,222.58,222.5,1.5443]
[1734111898649,31.2321,222.58,222.51,0.12549]
[1734111899056,20.0,222.6,222.51,13.43965178]
[1734111899266,20.0,222.6,222.51,0.12549]
[1734111900443,20.0,222.6,222.5,1.5443]
[1734111900444,35.008284,222.59,222.5,1.5443]
[1734111901056,11.2314,222.59,222.5,1.5443]
[1734111902957,20.0,222.59,222.53,0.12549]
[1734111903675,11.2299,222.62,222.51,0.12549]
[1734111903972,20.0,222.63,222.53,0.12549]
[1734111904150,20.0,222.63,222.5,1.5443]
[1734111904353,20.0,222.59,222.5,1.5443]
[1734111905853,35.008784,222.58,222.5,1.5443]
[1734111906046,20.0,222.55,222.5,1.5443]
[1734111906846,31.2339,222.55,222.5,1.5443]
[1734111907085,20.0,222.58,222.5,1.5443]
[1734111907974,11.2298,222.62,222.51,0.12549]
[1734111908349,33.6895,222.62,222.5,1.5443]
[1734111908872,22.4597,222.62,222.5,1.5443]
[1734111909290,20.0,222.58,222.5,1.5443]
[1734111910473,31.2322,222.58,222.5,1.5443]
[1734111910862,23.776884,222.57,222.5,1.5443]
[1734111911122,20.0,222.54,222.45,1.5284]
[1734111911486,23.776884,222.53,222.45,1.5284]
[1734111911777,20.0,222.5,222.45,1.5284]
[1734111912900,20.0,222.54,222.45,1.5284]
[1734111913057,20.0,222.54,222.46,0.12549]
[1734111914077,11.2339,222.54,222.46,0.12549]
[1734111915854,11.2339,222.54,222.45,1.5284]
[1734111916054,11.2339,222.54,222.46,0.12549]
[1734111916255,20.0,222.55,222.46,0.37647]
[1734111916577,1.6422,222.64,222.48,0.37647]
[1734111916775,11.2293,222.63,222.5,0.25098]
[1734111917083,11.2293,222.63,222.51,7.83078]
[1734111917868,22.4567,222.65,222.51,7.5798]
[1734111918191,23.776884,222.6,222.51,7.5798]
[1734111919295,11.2314,222.59,222.51,7.5798]
[1734111919960,11.2314,222.59,222.52,0.12549]
[1734111920679,11.2314,222.59,222.51,7.5798]
[1734111921067,0.12549,222.64,222.51,7.5798]
[1734111921467,20.0,222.6,222.51,7.5798]
[1734111921667,20.0,222.56,222.51,7.5798]
[1734111922984,11.2334,222.55,222.51,7.5798]
[1734111923190,11.2334,222.55,222.51,1.5004]
[1734111929076,11.2334,222.55,222.46,1.5778]
[1734111929077,20.0,222.52,222.46,1.5778]
[1734111929576,20.0,222.52,222.39,6.0459]
[1734111929781,20.0,222.52,222.41,30.0]
[1734111930189,20.0,222.48,222.39,6.0459]
[1734111930402,11.2374,222.47,222.39,6.0459]
[1734111932199,24.22124094,222.55,222.39,6.0459]
[1734111932200,11.2339,222.54,222.44,14.86966178]
[1734111932612,11.2339,222.54,222.44,1.5555]
[1734111933622,20.0,222.5,222.44,1.5555]
[1734111934282,11.2357,222.51,222.44,1.5555]
[1734111935494,66.240684,222.58,222.45,0.12549]
[1734111935683,11.2304,222.61,222.48,6.36389]
[1734111935889,11.2304,222.61,222.48,19.67805178]
[1734111936202,11.2304,222.61,222.48,6.36389]
[1734111937679,31.2321,222.58,222.48,6.36389]
[1734111938380,31.2321,222.58,222.48,6.2384]
[1734111938810,20.0,222.54,222.48,6.2384]
[1734111939012,23.776884,222.53,222.44,1.5555]
[1734111939182,20.0,222.5,222.44,1.5555]
[1734111939721,20.0,222.46,222.35,7.6144]
[1734111939878,11.2384,222.45,222.37,30.0]
[1734111940201,11.2384,222.45,222.35,7.6144]
[1734111940579,20.0,222.42,222.35,7.6144]
[1734111941197,20.0,222.41,222.35,1.5602]
[1734111941421,11.2402,222.42,222.35,1.5602]
[1734111941422,20.0,222.39,222.35,1.5602]
[1734111941915,6.82810229,222.48,222.35,1.5602]
[1734111941916,2.67529664,222.54,222.36,20.03954178]
[1734111942403,11.2361,222.5,222.36,6.4744]
[1734111943116,20.0,222.46,222.36,6.4744]
[1734111943614,20.0,222.46,222.36,19.78856178]
[1734111943988,20.0,222.44,222.36,6.4744]
[1734111944518,20.0,222.42,222.36,6.4744]
[1734111944817,20.0,222.42,222.35,1.5602]
[1734111945322,20.0,222.41,222.35,1.5602]
[1734111945510,23.776884,222.4,222.35,1.5602]
[1734111945823,20.0,222.37,222.35,1.5602]
[1734111946201,20.0,222.37,222.31,6.0955]
[1734111946202,23.776884,222.36,222.27,1.6587]
[1734111946516,20.0,222.42,222.27,1.6587]
[1734111946892,23.776884,222.41,222.27,1.6587]
[1734111947121,20.0,222.38,222.27,1.6587]
[1734111947303,11.2425,222.37,222.27,1.6587]
[1734111948028,20.0,222.38,222.28,21.73479294]
[1734111948793,11.2409,222.41,222.28,21.73479294]
[1734111948990,22.4769,222.45,222.32,21.35832294]
[1734111949192,33.7138,222.46,222.33,0.12549]
[1734111949421,33.7138,222.46,222.33,21.48381294]
[1734111949621,33.7138,222.46,222.34,1.5033]
[1734111950116,22.4759,222.46,222.34,1.5033]
[1734111950692,23.776884,222.45,222.34,1.5033]
[1734111950900,11.2359,222.5,222.35,27.58721294]
[1734111951109,11.2359,222.5,222.36,21.35832294]
[1734111951413,11.2359,222.5,222.35,27.58721294]
[1734111951626,11.2359,222.5,222.35,6.22889]
[1734111952194,11.2359,222.5,222.35,6.1034]
[1734111952427,20.0,222.47,222.35,6.1034]
[1734111952623,11.2359,222.5,222.37,21.35832294]
[1734111952830,23.776884,222.49,222.37,21.35832294]
[1734111953322,11.2359,222.5,222.37,21.35832294]
[1734111953550,11.2359,222.5,222.4,1.5603]
[1734111954103,22.4709,222.51,222.4,1.5603]
[1734111954417,0.25098,222.5,222.4,1.5603]
[1734111954620,24.027864,222.5,222.4,1.5603]
[1734111954941,20.0,222.47,222.35,6.1034]
[1734111955106,20.0,222.43,222.35,6.1034]
[1734111955506,31.2398,222.43,222.35,6.1034]
[1734111955921,23.776884,222.42,222.35,6.1034]
[1734111956625,11.2405,222.41,222.35,6.1034]
[1734111957526,20.0,222.42,222.35,6.1034]
[1734111958112,11.2389,222.45,222.35,6.1034]
[1734111958514,20.0,222.48,222.35,6.1034]
[1734111958838,20.0,222.47,222.35,27.46172294]
[1734111960727,31.2378,222.47,222.36,21.35832294]
[1734111960929,31.2378,222.47,222.37,21.48381294]
[1734111961725,31.2378,222.47,222.37,0.12549]
[1734111961928,31.2378,222.47,222.37,21.48381294]
[1734111962214,31.2378,222.47,222.38,21.35832294]
[1734111964149,22.4688,222.53,222.4,1.5293]
[1734111964322,11.2359,222.51,222.41,0.12549]
[1734111965546,11.2359,222.51,222.42,6.2014]
[1734111966750,1.83213447,222.54,222.43,21.73479294]
[1734111966933,11.2338,222.55,222.45,21.35832294]
[1734111967238,11.2338,222.55,222.46,1.522]
[1734111968210,20.0,222.52,222.46,1.522]
[1734111968848,11.2338,222.55,222.46,1.522]
[1734111969525,11.2338,222.55,222.47,0.12549]
[1734111969730,11.2309,222.6,222.47,0.37647]
[1734111969933,11.2309,222.6,222.5,6.5811]
[1734111971019,20.0,222.57,222.5,6.5811]
[1734111971846,11.2329,222.56,222.5,6.5811]
[1734111972219,11.2329,222.56,222.46,1.522]
[1734111972424,20.0,222.52,222.46,1.522]
[1734111973758,20.0,222.47,222.46,1.522]
[1734111973920,20.0,222.47,222.41,1.5802]
[1734111975024,11.2359,222.5,222.42,0.12549]
[1734111975343,11.2359,222.5,222.41,1.5802]
[1734111975937,0.12549,222.55,222.41,1.5802]
[1734111976128,23.776884,222.51,222.41,1.5802]
[1734111976666,20.0,222.48,222.41,1.5802]
[1734111977834,11.2374,222.47,222.41,1.5802]
[1734111979820,20.0,222.43,222.36,1.5668]
[1734111980445,20.0,222.44,222.36,1.5668]
[1734111982045,20.0,222.4,222.36,1.5668]
[1734111982657,20.0,222.4,222.31,1.5011]
[1734111983523,11.2415,222.39,222.31,1.5011]
[1734111984066,20.0,222.36,222.31,1.5011]
[1734111985128,11.2415,222.39,222.31,1.5011]
[1734111985345,11.2396,222.43,222.34,13.32841688]
[1734111985535,22.4749,222.47,222.34,13.32841688]
[1734111985735,22.4749,222.47,222.33,13.32841688]
[1734111985937,22.4749,222.47,222.34,13.32841688]
[1734111986336,22.4749,222.47,222.33,13.45390688]
[1734111986533,22.4749,222.47,222.32,13.32841688]
[1734111986937,23.776884,222.44,222.33,13.32841688]
[1734111987157,23.776884,222.44,222.32,13.45390688]
[1734111987938,23.776884,222.42,222.31,1.5011]
[1734111988858,23.776884,222.42,222.31,14.82951688]
[1734111989458,11.2405,222.41,222.31,14.82951688]
[1734111990050,11.2405,222.41,222.31,1.5011]
[1734111990245,20.0,222.38,222.31,1.5011]
[1734111990551,20.0,222.38,222.23,16.2086565]
[1734111990552,20.0,222.34,222.25,1.6589]
[1734111990759,20.0,222.34,222.25,31.6589]
[1734111991336,20.0,222.34,222.26,13.32841688]
[1734111991661,20.0,222.34,222.25,14.98731688]
[1734111991956,20.0,222.34,222.25,1.6589]
[1734111992838,20.0,222.34,222.26,0.12549]
[1734111993042,20.0,222.34,222.26,13.45390688]
[1734111994793,20.0,222.34,222.26,0.12549]
[1734111997144,20.0,222.34,222.25,1.6589]
[1734111998047,20.0,222.35,222.25,1.6589]
[1734111999261,31.2437,222.35,222.25,1.6589]
[1734111999654,31.2437,222.35,222.26,13.32841688]
[1734112000789,33.7153,222.45,222.32,13.32841688]
[1734112001654,33.7153,222.45,222.32,0.12549]
[1734112002106,20.0,222.4,222.33,1.5313]
[1734112002777,20.0,222.42,222.33,1.5313]
[1734112003070,20.0,222.41,222.33,1.5313]
[1734112003773,20.0,222.37,222.28,1.5891]
[1734112003971,20.0,222.37,222.29,30.0]
[1734112004158,11.243,222.36,222.28,1.5891]
[1734112004652,20.0,222.33,222.28,1.5891]
[1734112005072,20.0,222.33,222.23,1.5956]
[1734112005978,20.0,222.31,222.23,1.5956]
[1734112006482,20.0,222.33,222.23,1.5956]
[1734112006666,11.2425,222.37,222.26,13.32841688]
[1734112007158,11.2425,222.37,222.28,13.32841688]
[1734112007361,11.2425,222.37,222.29,13.32841688]
[1734112007859,11.2399,222.42,222.29,13.32841688]
[1734112008466,20.0,222.39,222.3,0.12549]
[1734112009550,20.0,222.39,222.31,1.6597]
[1734112009795,20.0,222.39,222.32,0.12549]
[1734112010251,11.2399,222.42,222.32,0.12549]
[1734112010983,11.2399,222.42,222.31,1.6597]
[1734112011162,23.776884,222.41,222.31,1.6597]
[1734112011567,20.0,222.38,222.31,1.6597]
[1734112012077,20.0,222.39,222.31,1.6597]
[1734112014264,31.2419,222.39,222.32,0.12549]
[1734112014806,31.2419,222.39,222.31,1.6597]
[1734112017001,20.0,222.35,222.26,1.5383]
[1734112018300,20.0,222.31,222.26,1.5383]
[1734112021693,20.0,222.33,222.26,1.5383]
[1734112022907,11.245,222.32,222.26,1.5383]
[1734112026192,11.2425,222.37,222.27,0.12549]
[1734112026400,11.2425,222.37,222.27,21.48000253]
[1734112026718,1.79524241,222.41,222.31,21.35451253]
[1734112026907,22.4775,222.45,222.33,21.35451253]
[1734112027091,33.7159,222.45,222.33,21.35451253]
[1734112027293,33.7159,222.45,222.34,1.5482]
[1734112027509,33.7159,222.45,222.34,8.0606]
[1734112028616,20.0,222.41,222.34,8.0606]
[1734112029201,20.0,222.42,222.34,8.0606]
[1734112029605,11.2405,222.41,222.34,8.0606]
[1734112034817,20.0,222.38,222.34,1.5482]
[1734112035623,20.0,222.42,222.34,1.5482]
[1734112035831,20.0,222.41,222.34,1.5482]
[1734112037519,20.0,222.37,222.34,1.5482]
[1734112038723,20.0,222.4,222.34,1.5482]
[1734112039715,11.2415,222.39,222.34,1.5482]
[1734112040514,20.0,222.36,222.28,7.7397]
[1734112040825,20.0,222.36,222.23,7.7544]
[1734112041026,35.265,222.39,222.23,7.7544]
[1734112041027,20.0,222.32,222.23,7.7544]
[1734112041906,20.0,222.28,222.23,7.7544]
[1734112042099,20.0,222.35,222.25,13.34595265]
[1734112042305,20.0,222.35,222.27,13.34595265]
[1734112042514,20.0,222.35,222.25,13.47144265]
[1734112042828,20.0,222.35,222.25,0.12549]
[1734112043121,20.0,222.35,222.26,13.34595265]
[1734112043122,11.2436,222.35,222.26,13.34595265]
[1734112043333,11.2436,222.35,222.26,0.12549]
[1734112044245,11.2436,222.35,222.26,30.12549]
[1734112044824,11.2436,222.35,222.27,0.12549]
[1734112045237,11.2417,222.39,222.28,0.12549]
[1734112045553,11.2417,222.39,222.28,13.47144265]
[1734112046437,11.2417,222.39,222.28,0.12549]
[1734112046651,11.2417,222.39,222.27,13.59693265]
[1734112047163,11.2417,222.39,222.31,0.25098]
[1734112047352,11.2379,222.46,222.33,0.12549]
[1734112047529,11.2379,222.46,222.33,13.59693265]
[1734112047723,11.2379,222.46,222.33,0.25098]
[1734112047929,11.2379,222.46,222.38,13.34595265]
[1734112048235,11.2379,222.46,222.37,13.34595265]
[1734112048449,11.2379,222.46,222.38,0.12549]
[1734112049034,11.2364,222.5,222.39,14.85695265]
[1734112049430,11.2364,222.5,222.39,1.511]
[1734112050149,20.0,222.47,222.4,0.12549]
[1734112050448,20.0,222.47,222.4,0.25098]
[1734112052545,20.0,222.47,222.4,21.58651697]
[1734112053335,20.0,222.47,222.4,0.25098]
[1734112053860,11.2339,222.54,222.4,21.58651697]
[1734112054030,11.2339,222.54,222.44,21.33553697]
[1734112054229,2.70717238,222.6,222.46,21.33553697]
[1734112054447,11.2323,222.58,222.48,0.12549]
[1734112054648,11.2323,222.58,222.5,0.25098]
[1734112055277,1.7987983,222.64,222.5,0.25098]
[1734112055278,11.2302,222.62,222.52,0.25098]
[1734112055566,11.2302,222.62,222.51,6.4817]
[1734112056038,20.0,222.59,222.51,6.4817]
[1734112057364,20.0,222.59,222.52,0.25098]
[1734112057941,31.2315,222.59,222.51,6.4817]
[1734112065187,23.776884,222.58,222.51,6.4817]
[1734112065363,20.0,222.55,222.47,1.6382]
[1734112066580,31.2337,222.55,222.47,1.6382]
[1734112067062,31.2337,222.55,222.48,0.25098]
[1734112069670,20.0,222.56,222.48,0.25098]
[1734112071378,20.0,222.56,222.48,30.25098]
[1734112071590,31.2331,222.56,222.48,30.0]
[1734112071778,23.776884,222.55,222.47,1.6382]
[1734112071971,23.776884,222.55,222.41,1.5525]
[1734112072174,20.0,222.52,222.41,1.5525]
[1734112072375,20.0,222.52,222.42,30.0]
[1734112072563,20.0,222.48,222.42,30.0]
[1734112073476,11.2374,222.47,222.42,30.0]
[1734112073667,20.0,222.43,222.42,30.0]
[1734112073872,20.0,222.43,222.36,1.516]
[1734112074076,20.0,222.43,222.36,31.516]
[1734112074464,20.0,222.44,222.36,1.516]
[1734112074658,20.0,222.48,222.36,1.516]
[1734112074897,43.776884,222.47,222.36,1.516]
[1734112075963,20.0,222.43,222.36,1.516]
[1734112076366,23.776884,222.42,222.36,1.516]
[1734112076566,23.776884,222.42,222.33,11.57217907]
[1734112077586,11.2405,222.41,222.33,11.57217907]
[1734112080166,11.242,222.38,222.33,11.57217907]
[1734112081766,20.0,222.39,222.33,11.57217907]
[1734112081960,11.2399,222.42,222.33,11.57217907]
[1734112082775,23.776884,222.41,222.33,11.57217907]
[1734112083190,0.12549,222.4,222.3,1.6605]
[1734112083378,20.0,222.38,222.23,7.9941]
[1734112083695,20.0,222.3,222.23,7.9941]
[1734112083873,31.2462,222.3,222.23,7.9941]
[1734112085774,31.2462,222.3,222.23,1.6322]
[1734112085988,20.0,222.26,222.18,7.8028]
[1734112086163,20.0,222.26,222.19,30.0]
[1734112086364,20.0,222.26,222.18,7.8028]
[1734112086568,20.0,222.26,222.19,0.12549]
[1734112086984,20.0,222.26,222.19,0.25098]
[1734112087190,11.2462,222.3,222.19,0.25098]
[1734112087191,20.0,222.27,222.21,0.25098]
[1734112087390,11.2462,222.3,222.21,0.25098]
[1734112088176,20.0,222.31,222.21,0.25098]
[1734112089296,20.0,222.29,222.22,0.12549]
[1734112089886,11.245,222.32,222.22,0.12549]
[1734112090472,20.0,222.32,222.25,13.45024048]
[1734112090671,20.0,222.32,222.23,13.32475048]
[1734112090867,20.0,222.32,222.22,0.12549]
[1734112091188,11.2455,222.31,222.21,0.12549]
[1734112091378,11.2455,222.31,222.21,30.12549]
[1734112092097,23.776884,222.3,222.21,30.0]
[1734112092413,20.0,222.27,222.21,30.0]
[1734112092993,20.0,222.27,222.19,0.12549]
[1734112093178,20.0,222.27,222.18,7.8028]